Cogmind - Beta 15 @@@ ROGUE MODE // 2025.06.05 @ 20:50:18 Player: Elxavo Result: Destroyed by L-31 Rogue with Katana Performance ------------- Evolutions (1) 500 Regions Visited (2) 400 Robots Destroyed (16) 80 Value Destroyed (418) 418 Prototype IDs (0) 0 Alien Tech Used (0) 0 Bonus (0) 0 TOTAL SCORE: 1398 Bonus ------- None Cogmind --------- Core Integrity 0/400 Matter 234/300 Energy 77/100 System Corruption 0% Temperature Cool (6) Movement Core (400) Ox7 Location -9/Materials Parts ------- > --- POWER (1) -------- (None) > --- PROPULSION (2) --- (None) > --- UTILITY (4) ------ Large Storage Unit Structural Scanner Seismic Detector > --- WEAPON (2) ------- (None) > --- INVENTORY (15) --- Light Ion Engine Light Ion Engine Light Ion Engine Light Treads Aluminum Leg Aluminum Leg Wheel Compact Wheel Heat Sink Structural Scanner Light Armor Plating Improved EM Shotgun Small Laser Small Laser Peak State ------------ > --- POWER ------------ Ion Engine > --- PROPULSION ------- Light Treads Light Treads > --- UTILITY ---------- Cooling System Large Storage Unit Structural Scanner Seismic Detector > --- WEAPON ----------- Assault Rifle Light Assault Rifle > --- INVENTORY -------- Light Ion Engine Light Ion Engine Light Ion Engine Aluminum Leg Aluminum Leg Wheel Compact Wheel Heat Sink Structural Scanner Small Laser Small Laser [Rating: 11] Favorites ----------- Power Ion Engine Engine Ion Engine Propulsion Light Treads Treads Light Treads Leg Aluminum Leg Wheel Wheel Utility Large Storage Unit Device Seismic Detector Storage Large Storage Unit Weapon Light Assault Rifle Ballistic Gun Light Assault Rifle Launcher Grenade Launcher Build | -11 -10 -9 ------- Run | Yrd Mat Mat Slots Evolved 2 | . . 2 Power . | . . . Propulsion . | . . . Utility 2 | . . 2 Weapon . | . . . Parts Attached 17 | 9 3 5 Power 2 | 1 1 . Engine 2 | 1 1 . Core . | . . . Reactor . | . . . Propulsion 5 | 4 . 1 Treads 3 | 2 . 1 Leg 1 | 1 . . Wheel 1 | 1 . . Hover . | . . . Flight . | . . . Utility 7 | 2 2 3 Device 5 | 1 1 3 Storage 2 | 1 1 . Processor . | . . . Hackware . | . . . Protection . | . . . Artifact . | . . . Weapon 3 | 2 . 1 Energy Gun . | . . . Energy Cannon . | . . . Ballistic Gun 2 | 2 . . Ballistic Cannon . | . . . Launcher 1 | . . 1 Special Weapon . | . . . Impact Weapon . | . . . Slashing Weapon . | . . . Piercing Weapon . | . . . Special Melee Weapon . | . . . Unidentified Prototypes . | . . . Parts Lost 7 | . 1 6 Power 1 | . . 1 Propulsion 2 | . . 2 Utility 2 | . 1 1 Weapon 2 | . . 2 Highest Loss Streak 5 | . 1 5 To Critical Strikes . | . . . Average Backups 9 | 5 9 12 Power 2 | . 2 3 Propulsion 4 | 3 4 4 Utility 1 | . 1 2 Weapon 1 | 1 1 2 Tool/Special . | . . . Unused Backups 9 | . . 9 Power 2 | . . 2 Propulsion 2 | . . 2 Utility 2 | . . 2 Weapon 3 | . . 3 Tool/Special . | . . . Average Slot Usage (%) 92 | . 98 89 Engine 10 | . 14 8 Treads 23 | . 28 20 Device 23 | . 12 29 Storage 12 | . 14 11 Ballistic Gun 20 | . 28 16 Launcher 2 | . . 3 Peak Build Rating 11 | 9 10 11 Average Rating 8 | 5 8 9 On Entrance 5 | . 9 8 Naked Turns . | . . . Heaviest Build 33 | 12 29 33 Greatest Support 40 | 40 40 40 Greatest Overweight (x) 7 | . . 7 Average Overweight (x) . | . . . Largest Inventory Capacity 15 | 8 15 15 Average Capacity 13 | 7 14 15 Most Carried 14 | 8 11 14 Average Carried 9 | 5 9 12 Final Capacity 15 | 8 15 15 Final Carried 14 | 8 10 14 Class Distribution -------------------- 100% | Mutant Dominant Class ---------------- Mutant | -10/Materials Mutant | -9/Materials Resources | -11 -10 -9 ----------- Run | Yrd Mat Mat Matter Collected 491 | 232 183 76 Remotely . | . . . Salvage Created 415 | 26 220 169 Parts 39 | 4 13 22 Haulers Intercepted . | . . . Recyclers Shooed 2 | . 1 1 Parts Field Recycled . | . . . Retrieved Matter . | . . . Parts Self-Destructed . | . . . Prevented . | . . . Kills | -11 -10 -9 ------- Run | Yrd Mat Mat Combat Hostiles Destroyed 13 | . 5 8 Guns 7 | . 5 2 AOE 6 | . . 6 Classes Destroyed 5 | 1 1 3 Builder 2 | . . 2 Tunneler 1 | 1 . . Swarmer 4 | . . 4 Grunt 7 | . 5 2 Sentry 2 | . . 2 Best Kill Streak 9 | 1 3 9 Combat Bots Only 7 | . 3 7 Max Kills in Single Turn 2 | 1 1 2 Gunslinging . | . . . Exploded 2 | . . 2 Melee . | . . . Uniques/NPCs Destroyed . | . . . Combat | -11 -10 -9 -------- Run | Yrd Mat Mat Hostile Shots Fired 97 | . 38 59 Missed 17 | . 8 9 Hits 80 | . 30 50 Melee 10 | . . 10 Projectile 70 | . 30 40 Critical Strikes 1 | . . 1 Damage Taken 1284 | . 335 949 Core 467 | . 48 419 Absorbed by Shields . | . . . Core Remaining (%) 90 | 100 80 . Volleys Fired 45 | 4 21 20 Largest 2 | 2 2 2 Hottest 50 | 40 40 50 Shots Fired 83 | 8 42 33 Gun 74 | 8 42 24 Cannon . | . . . Launcher 9 | . . 9 Special . | . . . Kinetic 74 | 8 42 24 Thermal . | . . . Explosive 9 | . . 9 Electromagnetic . | . . . Robot Hit Streak 12 | 5 8 12 Robot Miss Streak 3 | . 3 2 Penetration Max . | . . . Secondary Targets . | . . . Shots Hit Robots 49 | 5 25 19 Core Hits 31 | 2 11 18 Critical Kills . | . . . Critical Parts Destroyed 1 | . . 1 Critical Strikes 1 | . . 1 Destroy 1 | . . 1 Melee Attacks . | . . . Impact . | . . . Slashing . | . . . Piercing . | . . . Sneak Attacks . | . . . Combat Hostiles . | . . . Follow-up Attacks . | . . . Damage Inflicted 1121 | 50 258 813 Guns 429 | 50 258 121 Cannons . | . . . Explosions 692 | . . 692 Melee . | . . . Ramming . | . . . Kinetic 429 | 50 258 121 Thermal . | . . . Explosive 692 | . . 692 Electromagnetic . | . . . Impact . | . . . Slashing . | . . . Piercing . | . . . Highest Corruption . | . . . Average Corruption . | . . . Corruption Purged . | . . . Corruption Blocked . | . . . Overload Shots . | . . . Overflow Damage 7 | . . 7 Projectiles . | . . . Explosions 7 | . . 7 Melee . | . . . Knockbacks . | . . . Impact . | . . . Kinetic . | . . . Secondary . | . . . Self-Inflicted Damage 116 | . . 116 Shots 6 | . . 6 Rammed . | . . . Targets Rammed . | . . . Kicked . | . . . Crushed . | . . . Highest Temperature 18 | . 18 . Average Temperature 7 | . 7 . Received Heat Transfer 390 | . 180 210 Siege Activations . | . . . Martial Activations . | . . . Shielding Activations . | . . . Robots Disrupted . | . . . Combat Hostiles . | . . . Robots Corrupted . | . . . Combat Hostiles . | . . . Parts Fried . | . . . Impact Corruptions . | . . . Robots Melted . | . . . Combat Hostiles . | . . . Parts Melted . | . . . Heat Transferred . | . . . Parts Sabotaged . | . . . Parts Stolen . | . . . Parts Stripped . | . . . Power Chain Reactions . | . . . Alert | -11 -10 -9 ------- Run | Yrd Mat Mat Maximum Alert Level 1 | . . 1 Low Security (%) 92 | 100 100 85 Level 1 7 | . . 14 Level 2 . | . . . Level 3 . | . . . Level 4 . | . . . Level 5 . | . . . High Security . | . . . Max Security . | . . . Peak Influence 256 | 5 100 256 Initial 42 | . . 42 Average 39 | . 31 62 Influence Increases 483 | 5 153 325 Destroy 0b10 Robot/C 260 | . 100 160 Destroy 0b10 Robot/NC 15 | 5 . 10 Destroy Leader 60 | . 20 40 Successful Hack 2 | . 2 . Disable Machine 30 | . . 30 Destroy Structure 86 | . 1 85 Lose Combat Pursuer 30 | . 30 . Influence Decreases 287 | 5 53 229 Entered New Map 58 | . . 58 Time Decay 169 | 5 43 121 Lost Part 60 | . 10 50 Squads Dispatched 3 | . 2 1 Investigation 1 | . 1 . Extermination . | . . . Reinforcement 2 | . 1 1 Assault . | . . . Garrison . | . . . Intercept . | . . . Searches Triggered . | . . . Construction Impeded 1 | . . 1 Haulers Reinforced . | . . . Active Scanning Responses . | . . . Cargo Convoy Interrupts . | . . . Stealth | -11 -10 -9 --------- Run | Yrd Mat Mat Distress Signals . | . . . Communications Jammed . | . . . Distress Signals . | . . . Times Spotted 20 | . 8 12 Peak Tracking Total 6 | . 5 6 Tactical Retreats 1 | . 1 . Traps | -11 -10 -9 ------- Run | Yrd Mat Mat Traps Triggered . | . . . Indirectly . | . . . Trap Hack Attempts . | . . . Triggered . | . . . Disarmed . | . . . Reprogrammed . | . . . Reused . | . . . Traps Extracted . | . . . Installed . | . . . Triggered . | . . . Machines | -11 -10 -9 ---------- Run | Yrd Mat Mat Machines Disabled 2 | . . 2 Max in Single Turn 1 | . . 1 Machines Repaired . | . . . Machines Dismantled . | . . . Machines Sabotaged . | . . . Overloaded Fab Kills . | . . . Hacking | -11 -10 -9 --------- Run | Yrd Mat Mat Machines Accessed 1 | . 1 . Terminals 1 | . 1 . Fabricators . | . . . Repair Stations . | . . . Recycling Units . | . . . Scanalyzers . | . . . Garrison Access . | . . . Total Hacks 2 | . 2 . Successful 2 | . 2 . Failed . | . . . Catastrophic . | . . . Database Lockouts . | . . . Manual . | . . . Terminals 2 | . 2 . Fabricators . | . . . Repair Stations . | . . . Recycling Units . | . . . Scanalyzers . | . . . Garrison Access . | . . . Terminal Hacks 2 | . 2 . Record 2 | . 2 . Fabricator Hacks . | . . . Repair Station Hacks . | . . . Recycling Unit Hacks . | . . . Scanalyzer . | . . . Garrison Access Hacks . | . . . Unauthorized Hacks . | . . . Terminals . | . . . Fabricators . | . . . Repair Stations . | . . . Recycling Units . | . . . Scanalyzers . | . . . Garrison Access . | . . . Data Cores Recovered 1 | . 1 . Used . | . . . Hacking Detections 1 | . 1 . Full Trace Events . | . . . Feedback Events . | . . . Feedback Blocked . | . . . Robot Schematics Acquired . | . . . Robots Built . | . . . Authchips . | . . . Time . | . . . Total Robot Build Rating . | . . . Part Schematics Acquired . | . . . Parts Built . | . . . Authchips . | . . . Time . | . . . Total Part Build Rating . | . . . Parts Repaired . | . . . Time . | . . . Parts Recycled . | . . . Recycled Matter . | . . . Retrieved Matter . | . . . Retrieved Components . | . . . Parts Scanalyzed . | . . . Part Schematics Acquired . | . . . Parts Damaged . | . . . Bothacking | -11 -10 -9 ------------ Run | Yrd Mat Mat Used RIF Installer . | . . . Robots Hacked . | . . . Non-combat . | . . . Combat . | . . . Robot Hacks Applied . | . . . Relay Couplers Released . | . . . Fabnet Peak Effective % . | . . . Robots Rewired . | . . . Allies Hacked . | . . . Hacks Repelled . | . . . Allies | -11 -10 -9 -------- Run | Yrd Mat Mat Total Allies . | . . . Largest Group . | . . . Highest-Rated Group . | . . . Highest-Rated Ally . | . . . Total Orders . | . . . Ally Attacks . | . . . Total Damage . | . . . Kills . | . . . Allies Corrupted . | . . . Allies Melted . | . . . Intel | -11 -10 -9 ------- Run | Yrd Mat Mat Active Infowar (turns) 452 | 13 153 286 Terrain 166 | 13 153 . Structural 231 | . . 231 Seismic 271 | . . 271 Robot Analysis Total . | . . . Derelict Logs Recovered . | . . . Drone Launches . | . . . Drone Recoveries . | . . . Exploration | -11 -10 -9 ------------- Run | Yrd Mat Mat Turns Passed 593 | 131 176 286 Spaces Moved 275 | 79 68 128 Core 23 | 22 . 1 Treads 244 | 49 68 127 Legs 5 | 5 . . Wheels 3 | 3 . . Hover . | . . . Flight . | . . . Fastest Speed 50 | 50 160 160 Average Speed 150 | 123 160 161 Slowest Speed 400 | 160 160 400 Overloaded Moves . | . . . Propulsion Burnouts . | . . . Robots Hopped . | . . . Potential Cave-ins . | . . . Cave-ins Triggered . | . . . Exploration Rate (%) 14 | 6 22 14 Regions Visited 2 Branch Regions . Pre-discovered Areas . | . . . Known Exits Taken . | . . . Unknown Exits Taken 2 | 1 1 . Scrap Searched . | . . . Spaces Dug . | . . . Terrain Destroyed 106 | . . 106 Melee . | . . . Projectile . | . . . AOE 106 | . . 106 Terrain Rammed . | . . . Walls Destroyed . | . . . Machines Disabled . | . . . Actions | -11 -10 -9 --------- Run | Yrd Mat Mat Total 377 | 102 98 177 Wait 19 | . 3 16 Move 273 | 78 67 128 Hop . | . . . Pick Up 21 | 11 3 7 Fast Attach 4 | 4 . . Attach 6 | 3 1 2 Detach . | . . . Swap 7 | 2 2 3 Drop 2 | . 1 1 Fire 45 | 4 21 20 Melee . | . . . Ram . | . . . Kick . | . . . Crush . | . . . Escape Stasis . | . . . Rewire . | . . . Trap . | . . . Miscellaneous . | . . . Route ------- -11/Scrapyard -10/Materials -9/Materials History --------- Turn | Location | Event 5 | -11/Scrapyard | Discovered new exit (range 16) 132 | -11/Scrapyard | Entered Materials 133 | -10/Materials | Met a group of wandering Federalists 212 | -10/Materials | Discovered new exit (range 16) 305 | -10/Materials | Build established: Mutant 308 | -10/Materials | Entered another Materials area 308 | -9/Materials | Evolved 2 slots: Utility x2 583 | -9/Materials | Destroyed 7 combat bots 583 | -9/Materials | Core integrity fell below 50% 590 | -9/Materials | Core integrity fell below 20% 594 | -9/Materials | Destroyed by L-31 Rogue with Katana Last Messages --------------- 00561_ The unstable cave ceiling collapses. 00561_ Terrain Scan Processor crushed. 00561_ The unstable cave ceiling collapses. 00562_ Y-45 Defender destroyed. 00563_ The unstable cave ceiling collapses. 00563_ R-06 Scavenger collects Flight Unit. 00564_ The unstable cave ceiling collapses. 00567_ R-06 Scavenger collects Flight Unit. 00569_ The unstable cave ceiling collapses. 00569_ U-05 Engineer builds a Wall. 00570_ R-06 Scavenger collects Lgt. Assault Rifle. 00570_ R-06 Scavenger collects Lgt. Ion Engine. 00571_ Lgt. Treads destroyed. 00572_ The unstable cave ceiling collapses. 00573_ Lgt. Treads destroyed. 00573_ Lgt. Assault Rifle destroyed. 00573_ U-05 Engineer lays Concrete. 00574_ The unstable cave ceiling collapses. 00579_ Cooling System destroyed. 00587_ The unstable cave ceiling collapses. Map ----- +----------------------------------------------------+ | ???????????????????????????????????????? | | ???????????????????????????????????????? | | ???????????????????????????????????????? | | ???????????????????????????????????????? | | ???????????????????????????????????????? | | ???????????????????????????????????????? | | ???????????????????????????????????????? | | ???????????????????????????????????????? | | ???????????????????????????????????????? | | ???????????????????????????????????????? | | ???????????????????????????????????????? | | ???????????????????????????????????????? | | ???????????????????????????????????????? | | ????? #### ???????????????????????? | | ????? ########+#???????????????????????? | | ????? # ???????????????????????? | | ????? # ##????????????????????? | | ????? + ##????????????????????? | | ????? # ##????????????????????? | | ????? ## ""##????????????????????? | | ??????## T"##????????????????????? | | ??? ## ""##########????????????? | | ???##+## ##########????????????? | | ???## + ???????????? | | ???## ## # ## ######+??????????? | | ???## % # @# # # ## ??????????? | | ??### = # g#lg ==! ## ??????????? | | ??### [%*% ?????? | | ??### # # #####????????? | | ??### # %* # # #####????????? | | ??### # # # ##???????????? | | ??### # # ## ### # ??????????? | | ??### # ## ##### """ ????????? | | ??### ## """ ## ##### ? ""??????????? | | ??### ## """ ## ##?????? ""??????????? | | ???## + """ ## ##??????? ??????????? | | ???## ## ##+##????????""?????????? | | ???## ## """ # ???????????????????? | | ???## ##??"" # ??????????????????????? | | ???## ##???" ????????????????????????? | | ???## ##??? ?????????????????????????? | | ???## ##??? ?????????????????????????? | | ???## ## # ??????????????????????? | | ???## ######+### ## ???????????????? | | ???## #### ###+#### "T?????????????? | | ???## #### + ""?????????????? | | ???## #### % # ???????????????? | | ???## #### # ???????????????? | | ##### #### #########???????????????? | | #####+##### ##########???????????????? | +----------------------------------------------------+ Best States ------------- Heat Dissipation 50 Energy Generation 10 Energy Capacity 250 Matter Stores 300 Matter Capacity 300 Sight Range 16 Terrain Scan Range 16 Terrain Scan Density 10 Evasion (%) 50 Recoil Reduction 2 Item Schematics ----------------- None Robot Schematics ------------------ None Fabricated ------------ Nothing Repaired ---------- Nothing Alien Tech Used ----------------- None Achievements -------------- None Challenges ------------ None Game ------ Seed LaserIntegratedChainsword Manual? 0 Play Time 00:15:08 Cumulative 21.8 hours Start 2025.06.05 @ 20:37:09 End 2025.06.05 @ 20:50:18 Sessions 1 Manual Loads 0 Difficulty Rogue Special Mode None Game No. 26 Rogue 26 Adventurer 0 Explorer 0 Win Type - Total 0 Types 0/0/0/0/0/0/0/0/0/0 Lore% 10 Gallery% 15 Achievement% 14 Wizard Run 0 Options --------- Layout 0 ASCII 0 Keyboard 0 Movement Mouse Keybinds 0 Fullscreen 1 Font 18/SmallcapsGlow Map View 76x50 Zoom Use 0% Tactical HUD 1 Map Filters NONE Filters NONE Steam 1 RUN: 4082157e-abfb-4162-87e2-3092f330be42